[Event "Turkish-ch Youth U16 2024"]
[Site "Belek Antalya"]
[Date "2024.01.25"]
[Round "7"]
[White "Tutmaz, Bugra Hamza"]
[Black "Yildiz, Serdar Murat"]
[Result "1-0"]
[ECO "B67"]
[WhiteElo "1531"]
[BlackElo "2055"]
[Annotator "NA"]
[PlyCount "279"]
[EventDate "2024.01.21"]
[EventType "swiss"]
[EventCountry "TUR"]
[SourceTitle "playchess.com"]
[Source "ChessBase"]
[SourceQuality "1"]
[TimeControl "5400+30"]

1. e4 {[%emt 0:01:00]} c5 {[%emt 0:01:00]} 2. Nf3 {[%emt 0:00:30]} d6 {[%emt 0:00:30]} 3. d4 {[%emt 0:00:30]} cxd4 {[%emt 0:00:30]} 4. Nxd4 {[%emt 0:00:30]} Nf6 {[%emt 0:00:30]} 5. Nc3 {[%emt 0:00:30]} Nc6 {[%emt 0:00:30]} 6. Bg5 {[%emt 0:00:30]} e6 {[%emt 0:00:00]} 7. Qd2 {[%emt 0:00:00]} a6 {[%emt 0:00:00]} 8. O-O-O {[%emt 0:00:00]} Bd7 {[%emt 0:00:00]} 9. f4 {[%emt 0:00:00]} b5 {[%emt 0:00:00]} 10. Bxf6 {[%emt 0:00:00]} gxf6 {[%emt 0:00:00]} 11. Kb1 {[%emt 0:00:00]} Qb6 {[%emt 0:00:00]} 12. Nxc6 {[%emt 0:00:00]} Bxc6 {[%emt 0:00:00]} 13. Qe1 {[%emt 0:00:00]} O-O-O {[%emt 0:00:00] B67: Sicilian: Richter-Rauzer: 7...a6 8 0-0-0 Bd7, lines without 9 f4 Be7.} 14. Bd3 {[%emt 0:01:00]} b4 {[%emt 0:09:30]} 15. Ne2 {[%emt 0:01:30]} d5 {[%emt 0:00:30]} 16. Ng3 {[%emt 0:05:30]} Bc5 {[%emt 0:10:30]} 17. Qe2 {[%emt 0:03:30]} Kb8 {[%emt 0:11:30]} 18. exd5 {[%emt 0:12:30]} Bxd5 {[%emt 0:01:30]} 19. Be4 {[%emt 0:03:30]} Bb7 {[%emt 0:04:30]} 20. Bxb7 {[%emt 0:05:30]} Qxb7 {[%emt 0:00:30]} 21. Ne4 {[%emt 0:03:30]} Be7 {[%emt 0:00:30] [#]} 22. f5 $1 {[%emt 0:05:30]} Qc6 {[%emt 0:14:30]} 23. g4 {[%emt 0:10:30]} Rhe8 $14 {[%emt 0:04:30]} (23... exf5 $11 {might be stronger.} 24. gxf5 Rhe8) 24. fxe6 {[%emt 0:02:30]} fxe6 {[%emt 0:01:30]} 25. Rhf1 {[%emt 0:02:30]} Rf8 {[%emt 0:00:30]} 26. Rxd8+ {[%emt 0:02:30]} Bxd8 {[%emt 0:12:30]} 27. Ng5 {[%emt 0:02:30]} e5 {[%emt 0:08:35]} 28. Nxh7 {[%emt 0:11:30]} Rh8 {[%emt 0:00:25]} 29. Ng5 {[%emt 0:00:30]} Be7 {[%emt 0:03:09]} 30. Ne4 {[%emt 0:00:30]} Rd8 {[%emt 0:00:34]} 31. Ng3 {[%emt 0:07:30]} a5 {[%emt 0:04:01]} 32. Nf5 {[%emt 0:00:30]} Bc5 {[%emt 0:00:37]} 33. h4 {[%emt 0:02:19]} a4 {[%emt 0:00:14]} 34. g5 {[%emt 0:03:30]} fxg5 {[%emt 0:00:51]} 35. Qxe5+ {[%emt 0:00:01]} Ka8 {[%emt 0:00:25]} 36. hxg5 {[%emt 0:00:40]} Re8 {[%emt 0:00:53]} 37. Qg3 {[%emt 0:00:30]} Re2 {[%emt 0:01:44]} 38. Qd3 {[%emt 0:02:59]} Rg2 {[%emt 0:00:01]} 39. Nh4 {[%emt 0:01:33]} Rg4 {[%emt 0:02:57]} 40. Nf3 {[%emt 0:01:14]} Rg3 {[%emt 0:02:14]} 41. g6 {[%emt 0:02:02]} a3 {[%emt 0:01:13]} 42. Ne5 {[%emt 0:04:50]} Rxd3 {[%emt 0:00:30]} 43. Nxc6 {[%emt 0:00:30]} Rg3 {[%emt 0:00:30]} 44. bxa3 {[%emt 0:00:30]} bxa3 {[%emt 0:00:30]} 45. Ne5 {[%emt 0:00:30]} Bd4 {[%emt 0:00:00]} 46. g7 {[%emt 0:03:19]} Kb7 {[%emt 0:01:03]} 47. Nc4 {[%emt 0:01:58]} Bc5 {[%emt 0:01:18]} 48. Rf7+ {[%emt 0:01:07]} Kc6 {[%emt 0:00:01]} 49. Kc1 {[%emt 0:00:38]} Kd5 {[%emt 0:00:22]} 50. Nd2 {[%emt 0:00:08]} Rg1+ {[%emt 0:01:26]} 51. Nf1 {[%emt 0:00:41]} Ke6 {[%emt 0:00:05]} 52. Rf3 {[%emt 0:00:35]} Rxg7 {[%emt 0:00:30]} 53. Kd2 {[%emt 0:00:07]} Kd5 {[%emt 0:00:01]} 54. Rd3+ {[%emt 0:00:09]} Ke4 {[%emt 0:01:11]} 55. Ng3+ {[%emt 0:00:30]} Ke5 {[%emt 0:00:30]} 56. Ne2 {[%emt 0:00:00]} Rg2 {[%emt 0:00:00]} 57. Rh3 {[%emt 0:00:13]} Rf2 {[%emt 0:01:35]} 58. Rh5+ {[%emt 0:00:30]} Kd6 {[%emt 0:00:00]} 59. Rh1 {[%emt 0:00:40]} Kc6 {[%emt 0:00:54]} 60. Rb1 {[%emt 0:00:08]} Rh2 {[%emt 0:00:31]} 61. Rb3 {[%emt 0:00:11]} Kd5 {[%emt 0:00:20]} 62. Rg3 {[%emt 0:00:35]} Kc4 {[%emt 0:00:36]} 63. Rg4+ {[%emt 0:00:30]} Kb5 {[%emt 0:00:30]} 64. Kd3 {[%emt 0:00:30]} Rh3+ {[%emt 0:00:00]} 65. Rg3 {[%emt 0:00:00]} Rh1 {[%emt 0:00:00]} 66. Nd4+ {[%emt 0:01:05]} Kb4 {[%emt 0:02:29]} 67. c3+ {[%emt 0:00:23]} Ka4 {[%emt 0:00:30]} 68. Nb3 {[%emt 0:01:23]} Be7 {[%emt 0:01:01]} 69. Rg7 {[%emt 0:00:50]} Re1 {[%emt 0:02:06]} 70. Kc4 {[%emt 0:00:14]} Re4+ {[%emt 0:01:27]} 71. Nd4 {[%emt 0:00:30]} Re5 {[%emt 0:00:00]} 72. Kd3 {[%emt 0:00:41]} Bc5 {[%emt 0:01:30]} 73. Kc4 {[%emt 0:00:27]} Bb6 {[%emt 0:00:27]} 74. Rg8 {[%emt 0:01:00]} Rc5+ {[%emt 0:00:30]} 75. Kd3 {[%emt 0:00:00]} Ba5 {[%emt 0:00:00]} 76. c4 {[%emt 0:00:57]} Rh5 {[%emt 0:00:00]} 77. Ra8 {[%emt 0:00:39]} Rh3+ {[%emt 0:00:13]} 78. Ke4 {[%emt 0:00:18]} Rh4+ {[%emt 0:00:12]} 79. Kd5 {[%emt 0:00:27]} Rh5+ {[%emt 0:00:00]} 80. Kd6 {[%emt 0:00:46]} Rh6+ {[%emt 0:01:35]} 81. Ne6 {[%emt 0:00:34]} Rh2 {[%emt 0:00:44]} 82. Nd4 {[%emt 0:00:36]} Rh6+ {[%emt 0:00:49]} 83. Kd7 {[%emt 0:00:25]} Rh7+ {[%emt 0:00:26]} 84. Kd6 {[%emt 0:00:34]} Rh6+ {[%emt 0:00:02]} 85. Kd5 {[%emt 0:00:25]} Rh5+ {[%emt 0:00:05]} 86. Ke4 {[%emt 0:00:08]} Rh4+ {[%emt 0:00:16]} 87. Kd3 {[%emt 0:00:12]} Rh3+ {[%emt 0:00:02]} 88. Kc2 {[%emt 0:00:24]} Rc3+ {[%emt 0:00:41]} 89. Kb1 {[%emt 0:00:21]} Rxc4 {[%emt 0:02:48]} 90. Nb3 {[%emt 0:00:09]} Rh4 {[%emt 0:00:01]} 91. Rxa5+ {[%emt 0:00:07]} Kb4 {[%emt 0:00:01]} 92. Rd5 {[%emt 0:00:31]} Kc3 {[%emt 0:00:40]} 93. Rd1 {[%emt 0:00:06]} Rh2 {[%emt 0:00:06]} 94. Rc1+ {[%emt 0:00:13]} Kb4 {[%emt 0:00:50]} 95. Nd4 {[%emt 0:00:18]} Rb2+ {[%emt 0:00:23]} 96. Ka1 {[%emt 0:00:00]} Rh2 {[%emt 0:00:23]} 97. Nc2+ {[%emt 0:00:26]} Ka4 {[%emt 0:00:04]} 98. Kb1 {[%emt 0:00:06]} Rh3 {[%emt 0:00:46]} 99. Rg1 {[%emt 0:00:11]} Rh4 {[%emt 0:00:38]} 100. Kc1 {[%emt 0:00:07]} Rh3 {[%emt 0:00:55]} 101. Rg4+ {[%emt 0:00:17]} Ka5 {[%emt 0:00:08]} 102. Re4 {[%emt 0:00:15]} Rh1+ {[%emt 0:00:24]} 103. Kd2 {[%emt 0:00:16]} Rb1 {[%emt 0:00:47]} 104. Re3 {[%emt 0:00:22]} Rh1 {[%emt 0:00:05]} 105. Rxa3+ {[%emt 0:00:04]} Kb5 {[%emt 0:00:01]} 106. Rb3+ {[%emt 0:00:18]} Ka5 {[%emt 0:00:06]} 107. Kc3 {[%emt 0:00:00]} Rh3+ {[%emt 0:00:13]} 108. Kb2 {[%emt 0:00:06]} Rh2 {[%emt 0:00:04]} 109. Rb8 {[%emt 0:00:08]} Rh3 {[%emt 0:00:07]} 110. Ra8+ {[%emt 0:00:13]} Kb5 {[%emt 0:00:03]} 111. Rg8 {[%emt 0:00:23]} Ka4 {[%emt 0:00:38]} 112. Rg4+ {[%emt 0:01:38]} Ka5 {[%emt 0:00:01]} 113. Re4 {[%emt 0:00:05]} Rg3 {[%emt 0:00:30]} 114. Re3 {[%emt 0:00:07]} Rg8 {[%emt 0:00:44]} 115. Re5+ {[%emt 0:00:33]} Ka4 {[%emt 0:00:08]} 116. Re4+ {[%emt 0:00:14]} Ka5 {[%emt 0:00:05]} 117. Kb3 {[%emt 0:00:00]} Rg1 {[%emt 0:00:32]} 118. Re5+ {[%emt 0:00:14]} Kb6 {[%emt 0:00:04]} 119. Re1 {[%emt 0:00:33]} Rg3+ {[%emt 0:00:07]} 120. Re3 {[%emt 0:00:12]} Rg1 {[%emt 0:00:03]} 121. Nb4 {[%emt 0:00:23]} Rg4 {[%emt 0:00:38]} 122. a4 {[%emt 0:00:18]} Rg5 {[%emt 0:00:05]} 123. Re6+ {[%emt 0:00:21]} Kb7 {[%emt 0:00:14]} 124. Re4 {[%emt 0:00:08]} Kb6 {[%emt 0:00:15]} 125. Nd3 {[%emt 0:00:09]} Rg3 {[%emt 0:00:18]} 126. Rd4 {[%emt 0:00:13]} Rg1 {[%emt 0:00:38]} 127. Nb2 {[%emt 0:00:43]} Rg2 {[%emt 0:00:14]} 128. Rf4 {[%emt 0:00:22]} Rg1 {[%emt 0:00:34]} 129. Kb4 {[%emt 0:00:35]} Rb1 {[%emt 0:00:05]} 130. Rf6+ {[%emt 0:00:06]} Ka7 {[%emt 0:00:09]} 131. Kc3 {[%emt 0:00:35]} Ra1 {[%emt 0:00:50]} 132. Rd6 {[%emt 0:00:06]} Rh1 {[%emt 0:00:02]} 133. Nc4 {[%emt 0:00:16]} Rh4 {[%emt 0:01:20]} 134. Kb4 {[%emt 0:00:13]} Rh1 {[%emt 0:00:10]} 135. Na3 {[%emt 0:00:33]} Rh4+ {[%emt 0:00:57]} 136. Ka5 {[%emt 0:00:05]} Rh5+ {[%emt 0:00:06]} 137. Nb5+ {[%emt 0:00:30]} Kb7 {[%emt 0:00:00]} 138. Rb6+ {[%emt 0:00:27]} Ka8 {[%emt 0:00:12]} 139. Ka6 {[%emt 0:00:17]} Rxb5 {[%emt 0:00:22]} 140. Kxb5 {[%emt 0:00:06]} 1-0

[Event "Turkish-ch Youth U16 2024"]
[Site "Belek Antalya"]
[Date "2024.01.25"]
[Round "7"]
[White "Ercan, Hilal"]
[Black "Mutlu, Ezgi"]
[Result "1-0"]
[ECO "A43"]
[WhiteElo "1471"]
[BlackElo "1556"]
[Annotator "NA RC COMBH"]
[PlyCount "107"]
[EventDate "2024.01.21"]
[EventType "swiss"]
[EventCountry "TUR"]
[SourceTitle "playchess.com"]
[Source "ChessBase"]
[SourceQuality "1"]
[TimeControl "5400+30"]

1. d4 {[%emt 0:01:00]} c5 {[%emt 0:01:00]} 2. d5 {[%emt 0:00:30]} e6 {[%emt 0:00:00]} 3. e4 {[%emt 0:00:30]} Nf6 {[%emt 0:00:00]} 4. Nc3 {[%emt 0:00:30]} d6 {[%emt 0:00:30]} 5. Be2 {[%emt 0:02:30]} Be7 {[%emt 0:02:30]} 6. a4 {[%emt 0:02:30]} O-O {[%emt 0:02:30]} 7. a5 {[%emt 0:03:30]} a6 {[%emt 0:02:30]} 8. Nf3 {[%emt 0:01:30]} b5 {[%emt 0:02:30]} 9. axb6 {[%emt 0:01:30]} Qxb6 {[%emt 0:02:30]} 10. O-O {[%emt 0:00:30]} exd5 {[%emt 0:01:30]} 11. exd5 {[%emt 0:01:30]} Nbd7 {[%emt 0:04:30]} 12. h3 {[%emt 0:01:30]} Bb7 {[%emt 0:03:30]} 13. Re1 {[%emt 0:01:30]} Rfe8 {[%emt 0:01:30]} 14. Na4 {[%emt 0:06:30]} Qc7 {[%emt 0:02:30]} 15. c4 {[%emt 0:01:30]} Bf8 {[%emt 0:03:30]} 16. Qc2 {[%emt 0:09:30]} g6 {[%emt 0:03:30]} 17. Bf4 {[%emt 0:07:30]} Bg7 {[%emt 0:03:30]} 18. Nc3 {[%emt 0:01:30]} h6 {[%emt 0:04:30]} 19. Bd3 {[%emt 0:04:30]} Rad8 {[%emt 0:06:30]} 20. Kh1 {[%emt 0:05:30]} Bc8 {[%emt 0:04:30]} 21. Rad1 {[%emt 0:08:30]} Nf8 {[%emt 0:05:30]} 22. Nd2 {[%emt 0:04:30]} g5 {[%emt 0:07:30]} 23. Bh2 {[%emt 0:02:30]} N6d7 {[%emt 0:05:30]} 24. Nf3 {[%emt 0:01:30]} Nf6 {[%emt 0:05:30]} 25. Ne4 {[%emt 0:03:30]} Nxe4 {[%emt 0:04:30]} 26. Bxe4 {[%emt 0:00:30]} Qd7 {[%emt 0:01:30]} 27. g4 {[%emt 0:04:30]} Qb7 {[%emt 0:02:17]} 28. Rd2 {[%emt 0:03:30]} Qc7 {[%emt 0:02:42]} 29. Rde2 {[%emt 0:00:30]} Kh8 {[%emt 0:01:19]} 30. Bd3 {[%emt 0:03:13]} Bd7 {[%emt 0:03:01]} 31. Nd2 {[%emt 0:02:58]} Qb8 {[%emt 0:04:14]} 32. b3 {[%emt 0:03:00]} Rxe2 {[%emt 0:03:26]} 33. Rxe2 {[%emt 0:00:11]} Re8 {[%emt 0:04:44]} 34. Rxe8 {[%emt 0:00:58]} Qxe8 {[%emt 0:00:30]} 35. Bxd6 {[%emt 0:00:30]} Qe1+ {[%emt 0:00:30]} 36. Kg2 {[%emt 0:00:30]} h5 {[%emt 0:00:30]} 37. Nf3 {[%emt 0:00:08]} Qe8 {[%emt 0:00:41]} 38. Bf5 {[%emt 0:01:04]} hxg4 {[%emt 0:00:17]} 39. hxg4 {[%emt 0:00:22]} Ng6 {[%emt 0:01:08]} 40. Bxg6 {[%emt 0:03:20]} fxg6 {[%emt 0:00:07]} 41. Nxg5 {[%emt 0:02:11]} Bxg4 {[%emt 0:00:57]} 42. Qe4 {[%emt 0:00:24]} Qxe4+ {[%emt 0:00:56]} 43. Nxe4 {[%emt 0:00:30]} Bd1 {[%emt 0:00:30]} 44. Nxc5 {[%emt 0:00:00]} a5 {[%emt 0:00:00]} 45. Bc7 {[%emt 0:01:10]} Bd4 {[%emt 0:00:07]} 46. Nb7 {[%emt 0:01:04]} a4 {[%emt 0:00:30]} 47. bxa4 {[%emt 0:00:30]} Bxa4 {[%emt 0:00:30]} 48. c5 {[%emt 0:00:00]} Bb3 {[%emt 0:00:51]} 49. d6 {[%emt 0:01:29]} Bd5+ {[%emt 0:00:38]} 50. f3 {[%emt 0:00:52]} Kg8 {[%emt 0:00:45]} 51. d7 {[%emt 0:01:09]} Bf6 {[%emt 0:00:09]} 52. Bd8 {[%emt 0:00:01]} Be5 {[%emt 0:01:08]} 53. Be7 {[%emt 0:00:28]} Bc7 {[%emt 0:00:12]} 54. Bd6 {[%emt 0:00:26]} 1-0

[Event "Turkish-ch Youth U16 2024"]
[Site "Belek Antalya"]
[Date "2024.01.25"]
[Round "7"]
[White "Ulus, Ekin"]
[Black "Engel, Ecrin Tuana"]
[Result "1/2-1/2"]
[ECO "A03"]
[WhiteElo "1452"]
[BlackElo "1377"]
[Annotator "NA RC COMBH"]
[PlyCount "129"]
[EventDate "2024.01.21"]
[EventType "swiss"]
[EventCountry "TUR"]
[SourceTitle "playchess.com"]
[Source "ChessBase"]
[SourceQuality "1"]
[TimeControl "5400+30"]

1. f4 {[%emt 0:01:00]} d5 {[%emt 0:01:00]} 2. Nf3 {[%emt 0:00:30]} g6 {[%emt 0:00:30]} 3. g3 {[%emt 0:00:30]} Bg7 {[%emt 0:00:30]} 4. Bg2 {[%emt 0:00:30]} a5 {[%emt 0:00:30]} 5. O-O {[%emt 0:00:30]} a4 {[%emt 0:00:00]} 6. a3 {[%emt 0:00:00]} Nf6 {[%emt 0:00:00]} 7. d3 {[%emt 0:00:00]} d4 {[%emt 0:00:00]} 8. Nbd2 {[%emt 0:02:30]} O-O {[%emt 0:05:00]} 9. Nc4 {[%emt 0:04:30]} Nc6 {[%emt 0:04:30]} 10. e4 {[%emt 0:07:30]} dxe3 {[%emt 0:02:30]} 11. Nxe3 {[%emt 0:00:00]} Ng4 {[%emt 0:00:30]} 12. Nxg4 {[%emt 0:16:00]} Bxg4 {[%emt 0:01:30]} 13. Qe1 {[%emt 0:00:00]} Nd4 {[%emt 0:19:30]} 14. Nxd4 {[%emt 0:01:00]} Bxd4+ {[%emt 0:00:30]} 15. Kh1 {[%emt 0:00:30]} c6 {[%emt 0:00:30]} 16. Qb4 {[%emt 0:26:30]} Qd7 {[%emt 0:17:30]} 17. Re1 {[%emt 0:02:30]} Rfe8 {[%emt 0:04:30]} 18. Be3 {[%emt 0:00:30]} Bg7 {[%emt 0:03:30]} 19. Bc5 {[%emt 0:01:30]} e5 {[%emt 0:04:30]} 20. fxe5 {[%emt 0:02:30]} Rxe5 {[%emt 0:00:30]} 21. Rxe5 {[%emt 0:04:30]} Bxe5 {[%emt 0:00:30]} 22. Re1 {[%emt 0:00:30]} Bf6 {[%emt 0:00:00]} 23. Qf4 {[%emt 0:06:30]} Qf5 {[%emt 0:10:00]} 24. Qxf5 {[%emt 0:17:00]} Bxf5 {[%emt 0:00:30]} 25. Kg1 {[%emt 0:00:19]} Kg7 {[%emt 0:03:30]} 26. Bf1 {[%emt 0:02:44]} Ra5 {[%emt 0:01:30]} 27. Bb4 {[%emt 0:00:27]} Re5 {[%emt 0:00:57]} 28. Rxe5 {[%emt 0:00:30]} Bxe5 {[%emt 0:00:30]} 29. c3 {[%emt 0:00:00]} b5 {[%emt 0:00:03]} 30. d4 {[%emt 0:00:44]} Bf6 {[%emt 0:00:30]} 31. Bd6 {[%emt 0:01:10]} Bg5 {[%emt 0:00:30]} 32. Bf4 {[%emt 0:00:00]} Bxf4 {[%emt 0:00:30]} 33. gxf4 {[%emt 0:00:06]} Be6 {[%emt 0:00:30]} 34. Kf2 {[%emt 0:00:30]} Kf6 {[%emt 0:00:30]} 35. Ke3 {[%emt 0:00:59]} Bd5 {[%emt 0:01:08]} 36. Bd3 {[%emt 0:00:40]} h6 {[%emt 0:00:53]} 37. Kf2 {[%emt 0:00:17]} Kg7 {[%emt 0:01:14]} 38. Kg3 {[%emt 0:01:07]} f5 {[%emt 0:00:07]} 39. h4 {[%emt 0:00:32]} Kf6 {[%emt 0:00:13]} 40. Kf2 {[%emt 0:00:01]} Be4 {[%emt 0:01:42]} 41. Be2 {[%emt 0:00:40]} Bd5 {[%emt 0:00:30]} 42. Ke3 {[%emt 0:01:12]} g5 {[%emt 0:01:59]} 43. hxg5+ {[%emt 0:00:50]} hxg5 {[%emt 0:00:31]} 44. fxg5+ {[%emt 0:00:30]} Kxg5 {[%emt 0:00:30]} 45. Bd1 {[%emt 0:00:30]} f4+ {[%emt 0:00:30]} 46. Kf2 {[%emt 0:00:30]} Kf5 {[%emt 0:00:30]} 47. Bh5 {[%emt 0:00:00]} Kf6 {[%emt 0:00:01]} 48. Be2 {[%emt 0:00:49]} Ke6 {[%emt 0:00:36]} 49. Bg4+ {[%emt 0:00:02]} Kd6 {[%emt 0:00:19]} 50. Be2 {[%emt 0:01:40]} Ke6 {[%emt 0:02:37]} 51. Bd3 {[%emt 0:00:43]} Kf6 {[%emt 0:01:09]} 52. Bc2 {[%emt 0:00:34]} Kg5 {[%emt 0:00:54]} 53. Bd3 {[%emt 0:00:17]} Kg4 {[%emt 0:02:24]} 54. Bg6 {[%emt 0:00:15]} f3 {[%emt 0:00:42]} 55. Bc2 {[%emt 0:00:58]} Kf4 {[%emt 0:00:08]} 56. Bd3 {[%emt 0:00:07]} Bc4 {[%emt 0:01:44]} 57. Bc2 {[%emt 0:00:01]} Bd5 {[%emt 0:02:35]} 58. Bd3 {[%emt 0:00:08]} Be4 {[%emt 0:02:12]} 59. Bf1 {[%emt 0:00:15]} Bd5 {[%emt 0:04:57]} 60. Bd3 {[%emt 0:01:32]} Be6 {[%emt 0:00:38]} 61. Bc2 {[%emt 0:00:23]} Bc4 {[%emt 0:01:25]} 62. Bd1 {[%emt 0:01:29]} Bd5 {[%emt 0:00:57]} 63. Bc2 {[%emt 0:00:13]} Be4 {[%emt 0:00:26]} 64. Bd1 {[%emt 0:00:06]} Bd5 {[%emt 0:00:33]} 65. Bc2 {[%emt 0:00:02]} 1/2-1/2

[Event "Turkish-ch Youth U16 2024"]
[Site "Belek Antalya"]
[Date "2024.01.25"]
[Round "7"]
[White "Eren, Ecrin"]
[Black "Karadas, Hena"]
[Result "0-1"]
[ECO "D37"]
[WhiteElo "1021"]
[BlackElo "1631"]
[Annotator "NA RC COMBH"]
[PlyCount "76"]
[EventDate "2024.01.21"]
[EventType "swiss"]
[EventCountry "TUR"]
[SourceTitle "playchess.com"]
[Source "ChessBase"]
[SourceQuality "1"]
[TimeControl "5400+30"]

1. d4 {[%emt 0:01:00]} d5 {[%emt 0:01:00]} 2. c4 {[%emt 0:00:30]} e6 {[%emt 0:00:30]} 3. Nf3 {[%emt 0:00:30]} Nf6 {[%emt 0:00:00]} 4. e3 {[%emt 0:00:00]} Nbd7 {[%emt 0:00:00]} 5. Nc3 {[%emt 0:00:00]} a6 {[%emt 0:00:00]} 6. Bd3 {[%emt 0:00:30]} dxc4 {[%emt 0:00:00]} 7. Bxc4 {[%emt 0:00:30]} b5 {[%emt 0:00:30]} 8. Bf1 {[%emt 0:01:30]} Bb7 {[%emt 0:00:00]} 9. g3 {[%emt 0:00:30]} Bd6 {[%emt 0:08:00]} 10. Bg2 {[%emt 0:02:30]} c5 {[%emt 0:01:30]} 11. O-O {[%emt 0:03:30]} O-O {[%emt 0:02:30]} 12. Qe2 {[%emt 0:06:30]} Qc7 {[%emt 0:07:30]} 13. Rd1 {[%emt 0:06:30]} b4 {[%emt 0:03:30]} 14. Na4 {[%emt 0:05:30]} c4 {[%emt 0:03:30]} 15. Ne1 {[%emt 0:09:30]} Bxg2 {[%emt 0:05:30]} 16. Nxg2 {[%emt 0:00:30]} Qa5 {[%emt 0:07:30]} 17. e4 {[%emt 0:12:30]} Qxa4 {[%emt 0:03:30]} 18. e5 {[%emt 0:00:30]} Nxe5 {[%emt 0:01:30]} 19. dxe5 {[%emt 0:00:30]} Bxe5 {[%emt 0:00:30]} 20. Bg5 {[%emt 0:02:30]} Qb5 {[%emt 0:02:30]} 21. f4 {[%emt 0:05:30]} Qc5+ {[%emt 0:04:30]} 22. Qe3 {[%emt 0:01:30]} Qxe3+ {[%emt 0:00:30]} 23. Nxe3 {[%emt 0:00:30]} Bxb2 {[%emt 0:00:30]} 24. Rab1 {[%emt 0:00:30]} c3 {[%emt 0:00:00]} 25. Bxf6 {[%emt 0:03:30]} gxf6 {[%emt 0:00:00]} 26. Re1 {[%emt 0:01:30]} Rac8 {[%emt 0:01:30]} 27. Re2 {[%emt 0:01:30]} Rfd8 {[%emt 0:00:30]} 28. Rc2 {[%emt 0:05:30]} a5 {[%emt 0:01:30]} 29. Rd1 {[%emt 0:02:30]} a4 {[%emt 0:05:30]} 30. Rb1 {[%emt 0:05:30]} b3 {[%emt 0:01:30]} 31. axb3 {[%emt 0:00:30]} axb3 {[%emt 0:00:00]} 32. Rcxb2 {[%emt 0:01:30]} cxb2 {[%emt 0:00:00]} 33. Rxb2 {[%emt 0:00:00]} Rd3 {[%emt 0:01:30]} 34. Kf2 {[%emt 0:01:00]} Rcc3 {[%emt 0:00:30]} 35. Ng4 {[%emt 0:00:30]} Rc2+ {[%emt 0:00:30]} 36. Rxc2 {[%emt 0:00:30]} bxc2 {[%emt 0:00:30]} 37. Nxf6+ {[%emt 0:00:30]} Kh8 {[%emt 0:00:00]} 38. Ke2 {[%emt 0:00:00]} Rd1 {[%emt 0:00:00]} 0-1

[Event "Turkish-ch Youth U16 2024"]
[Site "Belek Antalya"]
[Date "2024.01.26"]
[Round "8"]
[White "Topuz, Mirac Melih"]
[Black "Erten, Kerem"]
[Result "0-1"]
[ECO "A38"]
[WhiteElo "2154"]
[BlackElo "2231"]
[Annotator "TA"]
[PlyCount "76"]
[EventDate "2024.01.21"]
[EventType "swiss"]
[EventCountry "TUR"]
[SourceTitle "playchess.com"]
[Source "ChessBase"]
[SourceQuality "1"]
[TimeControl "5400+30"]

{[%evp 15,76,8,37,-4,0,0,0,-12,-19,-18,-14,-16,-16,-42,-17,-14,-23,-16,0,-25,-2,-40,-5,-14,-10,-139,-133,-135,-137,-138,-135,-148,-141,-154,-128,-109,-34,-49,0,0,30,0,0,0,14,15,16,0,0,0,268,-91,-89,-88,134,-256,-265,-311,-83,-29986,-29987,-29986,-5106]} 1. Nf3 {[%emt 0:01:00]} Nf6 {[%emt 0:01:00]} 2. g3 {[%emt 0:01:30]} g6 {[%emt 0:00:30]} 3. b3 {[%emt 0:00:00]} Bg7 {[%emt 0:00:30]} 4. Bb2 {[%emt 0:00:00]} O-O {[%emt 0:00:30]} 5. Bg2 {[%emt 0:00:30]} c5 {[%emt 0:01:30]} 6. c4 {[%emt 0:01:30]} Nc6 {[%emt 0:01:30]} 7. O-O {[%emt 0:00:30]} d6 {[%emt 0:06:30]} 8. Nc3 {[%emt 0:06:30]} Bd7 {[%emt 0:02:30]} 9. Nd5 {[%emt 0:03:30]} Nxd5 {[%emt 0:04:30]} (9... e5 {simplifies} 10. Nc3 Rb8 11. d3 a6) 10. Bxg7 $1 {[%emt 0:00:30]} Ne3 {[%emt 0:01:30]} 11. fxe3 {[%emt 0:21:30]} Kxg7 {[%emt 0:00:30]} 12. Qc2 {[%emt 0:01:30]} f6 {[%emt 0:04:30]} 13. Rad1 {[%emt 0:03:30]} Qa5 {[%emt 0:03:30]} 14. Qb2 {[%emt 0:05:30]} Rad8 {[%emt 0:19:30]} 15. d4 {[%emt 0:04:30]} Bg4 {[%emt 0:00:30]} 16. h3 {[%emt 0:08:30]} Bc8 {[%emt 0:02:30]} 17. Kh2 {[%emt 0:03:30]} e5 {[%emt 0:01:30]} 18. a3 {[%emt 0:02:30]} Qc7 {[%emt 0:01:30]} 19. b4 {[%emt 0:01:30]} b6 {[%emt 0:02:30]} 20. Nd2 {[%emt 0:05:30]} (20. d5 $11 {keeps the balance.} Ne7 21. Qc3) 20... cxd4 {[%emt 0:08:30]} 21. b5 {[%emt 0:01:30]} Ne7 $1 {[%emt 0:01:30]} 22. exd4 {[%emt 0:00:30]} Nf5 {[%emt 0:00:30]} 23. dxe5 {[%emt 0:00:30]} dxe5 {[%emt 0:00:30]} 24. Qc3 {[%emt 0:03:30] Inhibits Ne3.} Be6 {[%emt 0:04:30]} 25. Rc1 {[%emt 0:05:51]} Qc5 {[%emt 0:06:30]} ({Better is} 25... h5 $17 26. a4 Rc8) 26. Ne4 $15 {[%emt 0:01:46]} Qd4 {[%emt 0:02:30]} (26... Qe7 $15) 27. Qb4 $1 $11 {[%emt 0:03:31]} Bf7 {[%emt 0:02:50] [#] Strongly threatening ...Ne3.} 28. Nxf6 $1 {[%emt 0:03:58]} Kxf6 {[%emt 0:06:29]} (28... Qe3 29. Ne4) 29. e4 {[%emt 0:00:01]} Be6 {[%emt 0:00:14][%cal Of8g8]} 30. g4 {[%emt 0:00:44]} Rg8 {[%emt 0:00:53]} 31. Rc2 {[%emt 0:00:30][%cal Of1f2] Dodges Qd2} Qd3 {[%emt 0:00:30]} 32. Rcf2 {[%emt 0:00:30]} Bxc4 $2 {[%emt 0:05:30][%mdl 8192]} (32... Qg3+ $11 33. Kg1 Rd4) 33. g5+ $2 {[%emt 0:05:52]} (33. gxf5 g5 $16) (33. exf5 $18 g5 34. Rc1 Bxb5 35. Bf1) 33... Kxg5 $17 {[%emt 0:00:30] Hoping for ...Qg3+.} 34. exf5 {[%emt 0:00:30] Qe7+ is the strong threat.} Kh6 $2 {[%emt 0:00:30]} (34... Bxb5 $2 35. fxg6 Qxg6 36. Qxb5 $18) (34... gxf5 $2 35. Qe7+ Kh6 36. Qh4+ Kg7 37. Rxf5 $18) (34... Qd4 $1 $17 {stays on course.} 35. fxg6 hxg6 (35... Bxf1 $2 36. Qe7+ Kh6 37. Qxh7+ Kg5 38. Rxf1 $18) 36. Qe7+ Kh6) 35. Qe7 $2 {[%emt 0:00:30][%mdl 8192]} (35. Rc1 $1 $16 {[%cal Rc1c4] is necessary to keep the advantage.} Rc8 (35... Bxb5 $2 36. Qh4+ Kg7 37. Rc7+ Bd7 38. f6+ Kh8 39. f7 $18) 36. Rd2) 35... Qd4 $19 {[%emt 0:02:26]} (35... Bxb5 36. Qh4+ Kg7 37. fxg6 (37. f6+ Kh8 $18) 37... Qxg6 38. Be4 $18) 36. fxg6 {[%emt 0:03:42] [#]} Rxg6 $2 {[%emt 0:00:45]} (36... Bxf1 $2 37. Qxh7+ Kg5 38. Rxf1 $18) (36... hxg6 37. Rd2 Qxd2 38. Qh4+ Kg7 39. Qe7+ Kh6 40. Qh4+ Kg7 41. Qe7+ Kh6 $11) (36... Rd7 $1 $19 {[%cal Rd7e7] is more deadly.} 37. Qf6 hxg6 (37... Rxg6 38. Qf8+ Rdg7 39. Rc1 $17)) 37. Rg1 $2 {[%emt 0:01:27][%mdl 8192]} (37. Be4 $17 Bxf1 (37... Qxe4 38. Qxd8 Bxf1 39. Qf8+ Kg5 40. Rxf1 $11) 38. Qh4+ Kg7 39. Qe7+ Kg8 (39... Kh8 40. Rf8+ Rxf8 41. Qxf8+ Rg8 42. Qf6+ Rg7 43. Qf8+ Rg8 44. Qf6+ Rg7 45. Qf8+ Rg8 $11) 40. Qf7+ Kh8 41. Bxg6 hxg6 (41... Bxb5 42. Qxh7#) 42. Rxf1) 37... Qxf2 {[%emt 0:01:10]} ({Worse is} 37... Bxb5 38. Rf7 Rh8 39. Rxh7+ Rxh7 40. Qf8+ Rhg7 41. Qh8+ Rh7 42. Qf8+ Rhg7 43. Qh8+ Rh7 44. Qf8+ $11) 38. Qxd8 {[%emt 0:00:21] [#]} Bf1 $1 {[%emt 0:00:19][%mdl 512]} 0-1